Cogmind - Beta 13 @@@ ROGUE MODE // 2024.04.01 @ 17:45:44 Player: Olafz Result: Destroyed by G-34 Mercenary with Small Laser Performance ------------- Evolutions (0) 0 Regions Visited (1) 200 Robots Destroyed (9) 45 Value Destroyed (118) 118 Prototype IDs (0) 0 Alien Tech Used (0) 0 Bonus (0) 0 TOTAL SCORE: 363 Bonus ------- None Cogmind --------- Core Integrity 0/250 Matter 191/300 Energy 100/100 System Corruption 0% Temperature Cool (6) Movement Core (200) Ox3 Location -10/Materials Parts ------- > --- POWER (1) -------- (None) > --- PROPULSION (2) --- (None) > --- UTILITY (2) ------ Medium Storage Unit > --- WEAPON (2) ------- (None) > --- INVENTORY (10) --- Light Ion Engine Small Storage Unit Peak State ------------ > --- POWER ------------ Ion Engine > --- PROPULSION ------- Aluminum Leg Aluminum Leg > --- UTILITY ---------- Medium Storage Unit > --- WEAPON ----------- Light Assault Rifle Grenade Launcher > --- INVENTORY -------- Light Ion Engine Small Storage Unit [Rating: 6] Favorites ----------- Power Ion Engine Engine Ion Engine Propulsion Aluminum Leg Leg Aluminum Leg Utility Medium Storage Unit Storage Medium Storage Unit Weapon Light Assault Rifle Ballistic Gun Light Assault Rifle Launcher Grenade Launcher Build | -11 -10 ------- Run | Yrd Mat Slots Evolved . | . . Power . | . . Propulsion . | . . Utility . | . . Weapon . | . . Parts Attached 7 | 5 2 Power 1 | 1 . Engine 1 | 1 . Core . | . . Reactor . | . . Propulsion 2 | 2 . Treads . | . . Leg 2 | 2 . Wheel . | . . Hover . | . . Flight . | . . Utility 2 | 1 1 Device . | . . Storage 2 | 1 1 Processor . | . . Hackware . | . . Protection . | . . Artifact . | . . Weapon 2 | 1 1 Energy Gun . | . . Energy Cannon . | . . Ballistic Gun 1 | 1 . Ballistic Cannon . | . . Launcher 1 | . 1 Special Weapon . | . . Impact Weapon . | . . Slashing Weapon . | . . Piercing Weapon . | . . Special Melee Weapon . | . . Unidentified Prototypes . | . . Parts Lost 5 | . 5 Power 1 | . 1 Propulsion 2 | . 2 Utility . | . . Weapon 2 | . 2 Highest Loss Streak 4 | . 4 To Critical Strikes . | . . Average Slot Usage (%) 60 | . 60 Engine 11 | . 11 Leg 21 | . 21 Storage 13 | . 13 Ballistic Gun 10 | . 10 Launcher 2 | . 2 Naked Turns . | . . Heaviest Build 19 | 11 19 Greatest Support 20 | 20 20 Greatest Overweight (x) 3 | 1 3 Average Overweight (x) . | . . Largest Inventory Capacity 10 | 8 10 Average Capacity 9 | 7 9 Most Carried 2 | 1 2 Average Carried 1 | . 1 Final Capacity 10 | 8 10 Final Carried 2 | 1 2 Class Distribution -------------------- 100% | Mutant Dominant Class ---------------- Mutant | -10/Materials Resources | -11 -10 ----------- Run | Yrd Mat Matter Collected 207 | 168 39 Remotely . | . . Salvage Created 205 | 99 106 Parts 15 | 6 9 Haulers Intercepted . | . . Recyclers Shooed . | . . Parts Field Recycled . | . . Retrieved Matter . | . . Parts Self-Destructed . | . . Prevented . | . . Kills | -11 -10 ------- Run | Yrd Mat Combat Hostiles Destroyed 2 | . 2 Guns 1 | . 1 AOE 1 | . 1 Classes Destroyed 6 | 2 4 Worker 3 | . 3 Builder 1 | . 1 Tunneler 1 | 1 . Recycler 1 | 1 . Watcher 1 | . 1 Grunt 2 | . 2 Best Kill Streak 7 | 1 7 Combat Bots Only 2 | . 2 Max Kills in Single Turn 3 | 1 3 Gunslinging . | . . Exploded 1 | . 1 Melee . | . . Uniques/NPCs Destroyed . | . . Combat | -11 -10 -------- Run | Yrd Mat Hostile Shots Fired 83 | . 83 Missed 26 | . 26 Damage Taken 707 | . 707 Core 251 | . 251 Absorbed by Shields . | . . Core Remaining (%) 100 | 100 . Volleys Fired 41 | 16 25 Largest 2 | 1 2 Hottest 50 | 20 50 Shots Fired 44 | 16 28 Gun 41 | 16 25 Cannon . | . . Launcher 3 | . 3 Special . | . . Kinetic 41 | 16 25 Thermal . | . . Explosive 3 | . 3 Electromagnetic . | . . Robot Hit Streak 6 | 6 5 Robot Miss Streak 3 | 2 3 Penetration Max . | . . Secondary Targets . | . . Shots Hit Robots 29 | 13 16 Core Hits 19 | 4 15 Critical Kills . | . . Critical Parts Destroyed . | . . Critical Strikes . | . . Melee Attacks . | . . Impact . | . . Slashing . | . . Piercing . | . . Sneak Attacks . | . . Combat Hostiles . | . . Follow-up Attacks . | . . Damage Inflicted 480 | 98 382 Guns 232 | 98 134 Cannons . | . . Explosions 248 | . 248 Melee . | . . Ramming . | . . Kinetic 232 | 98 134 Thermal . | . . Explosive 248 | . 248 Electromagnetic . | . . Impact . | . . Slashing . | . . Piercing . | . . Highest Corruption . | . . Average Corruption . | . . Corruption Purged . | . . Corruption Blocked . | . . Overload Shots . | . . Overflow Damage 7 | . 7 Projectiles . | . . Explosions 7 | . 7 Melee . | . . Knockbacks . | . . Impact . | . . Kinetic . | . . Secondary . | . . Self-Inflicted Damage 77 | . 77 Shots 2 | . 2 Rammed . | . . Targets Rammed . | . . Kicked . | . . Crushed . | . . Highest Temperature 45 | . 45 Average Temperature 14 | . 14 Received Heat Transfer 351 | . 351 Siege Activations . | . . Robots Corrupted . | . . Combat Hostiles . | . . Parts Fried . | . . Impact Corruptions . | . . Robots Melted . | . . Combat Hostiles . | . . Parts Melted . | . . Heat Transferred . | . . Parts Sabotaged . | . . Parts Stolen . | . . Parts Stripped . | . . Power Chain Reactions . | . . Alert | -11 -10 ------- Run | Yrd Mat Peak Influence 113 | 10 113 Initial 6 | . 6 Average 34 | 3 45 Maximum Alert Level . | . . Low Security (%) 100 | 100 100 Level 1 . | . . Level 2 . | . . Level 3 . | . . Level 4 . | . . Level 5 . | . . High Security . | . . Max Security . | . . Squads Dispatched 1 | . 1 Investigation 1 | . 1 Extermination . | . . Reinforcement . | . . Assault . | . . Garrison . | . . Intercept . | . . Searches Triggered . | . . Construction Impeded . | . . Haulers Reinforced . | . . Active Scanning Responses . | . . Cargo Convoy Interrupts . | . . Stealth | -11 -10 --------- Run | Yrd Mat Distress Signals 1 | . 1 Communications Jammed . | . . Distress Signals . | . . Times Spotted 5 | . 5 Peak Tracking Total 4 | . 4 Tactical Retreats . | . . Traps | -11 -10 ------- Run | Yrd Mat Traps Triggered . | . . Indirectly . | . . Trap Hack Attempts . | . . Triggered . | . . Disarmed . | . . Reprogrammed . | . . Reused . | . . Traps Extracted . | . . Installed . | . . Triggered . | . . Machines | -11 -10 ---------- Run | Yrd Mat Machines Disabled . | . . Max in Single Turn . | . . Machines Repaired . | . . Machines Dismantled . | . . Machines Sabotaged . | . . Overloaded Fab Kills . | . . Hacking | -11 -10 --------- Run | Yrd Mat Machines Accessed 1 | . 1 Terminals 1 | . 1 Fabricators . | . . Repair Stations . | . . Recycling Units . | . . Scanalyzers . | . . Garrison Access . | . . Total Hacks 4 | . 4 Successful 3 | . 3 Failed 1 | . 1 Catastrophic 1 | . 1 Database Lockouts . | . . Manual 1 | . 1 Terminals 4 | . 4 Fabricators . | . . Repair Stations . | . . Recycling Units . | . . Scanalyzers . | . . Garrison Access . | . . Terminal Hacks 3 | . 3 Emergency Access Points 1 | . 1 Registered Components 1 | . 1 Zone Layout 1 | . 1 Fabricator Hacks . | . . Repair Station Hacks . | . . Recycling Unit Hacks . | . . Scanalyzer . | . . Garrison Access Hacks . | . . Unauthorized Hacks . | . . Terminals . | . . Fabricators . | . . Repair Stations . | . . Recycling Units . | . . Scanalyzers . | . . Garrison Access . | . . Data Cores Recovered . | . . Used . | . . Hacking Detections 1 | . 1 Full Trace Events 1 | . 1 Feedback Events . | . . Feedback Blocked . | . . Robot Schematics Acquired . | . . Robots Built . | . . Authchips . | . . Time . | . . Total Robot Build Rating . | . . Part Schematics Acquired . | . . Parts Built . | . . Authchips . | . . Time . | . . Total Part Build Rating . | . . Parts Repaired . | . . Time . | . . Parts Recycled . | . . Recycled Matter . | . . Retrieved Matter . | . . Retrieved Components . | . . Parts Scanalyzed . | . . Part Schematics Acquired . | . . Parts Damaged . | . . Bothacking | -11 -10 ------------ Run | Yrd Mat Used RIF Installer . | . . Robots Hacked . | . . Non-combat . | . . Combat . | . . Robot Hacks Applied . | . . Relay Couplers Released . | . . Fabnet Peak Effective % . | . . Robots Rewired . | . . Allies Hacked . | . . Hacks Repelled . | . . Allies | -11 -10 -------- Run | Yrd Mat Total Allies . | . . Largest Group . | . . Highest-Rated Group . | . . Highest-Rated Ally . | . . Total Orders . | . . Ally Attacks . | . . Total Damage . | . . Kills . | . . Allies Corrupted . | . . Allies Melted . | . . Intel | -11 -10 ------- Run | Yrd Mat Robot Analysis Total . | . . Derelict Logs Recovered . | . . Drone Launches . | . . Drone Recoveries . | . . Exploration | -11 -10 ------------- Run | Yrd Mat Turns Passed 324 | 86 238 Spaces Moved 178 | 43 135 Core 26 | 5 21 Treads . | . . Legs 152 | 38 114 Wheels . | . . Hover . | . . Flight . | . . Fastest Speed 50 | 50 120 Average Speed 132 | 115 138 Slowest Speed 200 | 120 200 Overloaded Moves . | . . Propulsion Burnouts . | . . Robots Hopped . | . . Cave-ins Triggered . | . . Exploration Rate (%) 18 | 4 32 Regions Visited 1 Branch Regions . Pre-discovered Areas . | . . Known Exits Taken . | . . Unknown Exits Taken 1 | 1 . Scrap Searched . | . . Spaces Dug . | . . Terrain Destroyed 21 | . 21 Melee . | . . Projectile . | . . AOE 21 | . 21 Terrain Rammed . | . . Walls Destroyed . | . . Machines Disabled . | . . Actions | -11 -10 --------- Run | Yrd Mat Total 227 | 64 163 Wait . | . . Move 177 | 42 135 Hop . | . . Pick Up 1 | 1 . Fast Attach 7 | 5 2 Attach . | . . Detach 1 | . 1 Swap . | . . Drop . | . . Fire 41 | 16 25 Melee . | . . Ram . | . . Kick . | . . Crush . | . . Escape Stasis . | . . Rewire . | . . Trap . | . . Miscellaneous . | . . Route ------- -11/Scrapyard -10/Materials History --------- Turn | Location | Event 8 | -11/Scrapyard | Discovered new exit (range 16) 87 | -11/Scrapyard | Entered Materials 286 | -10/Materials | Core integrity fell below 50% 305 | -10/Materials | Build established: Mutant 306 | -10/Materials | Core integrity fell below 20% 314 | -10/Materials | Lost 4 parts (1p2n1w) 325 | -10/Materials | Destroyed by G-34 Mercenary with Small Laser Last Messages --------------- 00260_ R-06 Scavenger collects Aluminum Leg. 00264_ K-01 Serf collects debris. 00269_ U-05 Engineer lays Concrete. 00272_ K-01 Serf collects debris. 00272_ U-05 Engineer lays Concrete. 00275_ K-01 Serf collects debris. 00276_ U-05 Engineer lays Concrete. 00280_ K-01 Serf collects debris. 00280_ U-05 Engineer lays Concrete. 00281_ U-05 Engineer builds a Wall. 00281_ Ion Engine destroyed. 00283_ K-01 Serf collects debris. 00283_ Aluminum Leg destroyed. 00285_ U-05 Engineer builds a Wall. 00299_ K-01 Serf destroyed. 00301_ K-01 Serf collects debris. 00303_ K-01 Serf cleans the Terminal. 00306_ K-01 Serf collects debris. 00309_ R-06 Scavenger collects Wheel. 00310_ K-01 Serf collects debris. Map ----- +----------------------------------------------------+ | ??????????????????????????????????????????? | | ??????????????????????????????????????????? | | ??????????????????????????????????????????? | | ??????????????????????????????????????????? | | ??????????????????????????????????????????? | | ??????????????????????????????????????????? | | ????????????????????????????????? #??????? | | ???????????????????????????????? #??????? | | ???????????????#+#????????????? #??????? | | ???????????????# #????????????? #???????? | | ???????????????# #???????????? #????????? | | ????+?????????## #####+####### #????????? | | ????# ????????#^ T ^ +????????? | | ????# ???????# ^ ?????????? | | ???## ??????#^ """ ^ ???????????? | | #### ###### """ #?????????????? | | """ #?????????????? | | ? T #?????????????? | | % #?????????????? | | ??## #### #?????????????? | | ???###?????#T #####/####g#####??????????? | | ???????????## # # ! #??????????? | | ????????????# + """ # """ #??????????? | | ???????????## # "Y" #! """ #??????????? | | ???????????## # # """ #??????????? | | ???# """""## #[!@ #??????????? | | ???# """""## #[! ""#??????????? | | ???# """""# * # #[! T"#??????????? | | ???# """ ## # #### ""#??????????? | | ???# # ###??# = #??????????? | | ???# ## #???##########??????????? | | ???# ## #???????????????????????? | | ???######### ###???????????????????????? | | ???########## #?????????????????????????? | | ???# # #?????????????????????????? | | ???# """ # #????????????????######???? | | ???#""""" # ########????????##!!! ##??? | | ???#""""" # #????????#! !#??? | | ???#""""" # #????????# #??? | | ???# """ # #????????#### ###? | | ???# # ##T# #???????????# #? | | ???# # #### #???????????# #? | | ???# # #??# #???????????# #? | | ???#####+#### #??# ############# #? | | ??? #??# #? | | ??? #??# ############## ##? | | ??? #??# #????????????# #?? | | ??? """ #?###+#####?????????# #?? | | ???### """ #?# #?????????# #?? | | ???#### """ #?# #?????????# #?? | +----------------------------------------------------+ Best States ------------- Heat Dissipation 25 Energy Generation 10 Energy Capacity 250 Matter Stores 202 Matter Capacity 300 Sight Range 16 Terrain Scan Density 10 Evasion (%) 55 Item Schematics ----------------- None Robot Schematics ------------------ None Fabricated ------------ Nothing Alien Tech Used ----------------- None Achievements -------------- Let's See Who's Tougher Challenges ------------ None Game ------ Seed MagneticTeslaLoader Manual? 0 Play Time 00:06:26 Cumulative 8.8 hours Start 2024.04.01 @ 17:42:03 End 2024.04.01 @ 17:45:44 Sessions 1 Manual Loads 0 Difficulty Rogue Special Mode None Game No. 23 Rogue 21 Adventurer 2 Explorer 0 Win Type - Total 0 Types 0/0/0/0/0/0/0/0/0 Lore% 14 Gallery% 15 Achievement% 16 Wizard Run 0 Options --------- Layout 0 ASCII 0 Keyboard 1 Movement Arrows Keybinds 0 Fullscreen 2 Font 18/SmallcapsGlow Map View 76x50 Zoom Use 0% Tactical HUD 1 Map Filters NONE Filters NONE Steam 1 RUN: 36ffdac3-15d1-430c-a090-59d61fd1ffc2